[Event "Early-Titled-Tuesday-Blitz-March-05-2024"]
[Site "Chess.com"]
[Date "2024.03.05"]
[Round "1"]
[White "Quattroporte300"]
[Black "GMKrikor"]
[Result "0-1"]
[WhiteElo "2478"]
[BlackElo "2878"]
[TimeControl "180+1"]
[EndTime "8:07:20 PST"]
[Termination "GMKrikor won by resignation"]

1. e4 {[%clk 0:03:00.9]} 1... c5 {[%clk 0:02:59.8]} 2. Nf3 {[%clk 0:03:01.2]}
2... Nc6 {[%clk 0:03:00.3]} 3. d4 {[%clk 0:03:01.7]} 3... cxd4 {[%clk
0:03:01.2]} 4. Nxd4 {[%clk 0:03:02.1]} 4... Nf6 {[%clk 0:03:01.9]} 5. Nc3 {[%clk
0:03:01.9]} 5... e5 {[%clk 0:03:02.6]} 6. Ndb5 {[%clk 0:03:01.6]} 6... d6 {[%clk
0:03:03.2]} 7. Nd5 {[%clk 0:03:01.9]} 7... Nxd5 {[%clk 0:03:02.8]} 8. exd5
{[%clk 0:03:02.8]} 8... Nb8 {[%clk 0:03:03.4]} 9. a4 {[%clk 0:03:02.9]} 9... Be7
{[%clk 0:03:03.7]} 10. Be2 {[%clk 0:03:01.3]} 10... O-O {[%clk 0:02:59.7]} 11.
O-O {[%clk 0:03:01.7]} 11... Nd7 {[%clk 0:02:58.5]} 12. b4 {[%clk 0:03:01.2]}
12... f5 {[%clk 0:02:43.9]} 13. Bb2 {[%clk 0:02:59.5]} 13... a6 {[%clk
0:02:39.5]} 14. Na3 {[%clk 0:02:59.1]} 14... a5 {[%clk 0:02:40.2]} 15. c3 {[%clk
0:02:46.6]} 15... Nb6 {[%clk 0:02:25.8]} 16. Nc4 {[%clk 0:02:44.8]} 16... Nxc4
{[%clk 0:02:25.3]} 17. Bxc4 {[%clk 0:02:45.3]} 17... Bd7 {[%clk 0:02:20.8]} 18.
Bb3 {[%clk 0:02:25.7]} 18... Qb6 {[%clk 0:02:07.8]} 19. Qd2 {[%clk 0:02:23]}
19... Bf6 {[%clk 0:01:59]} 20. b5 {[%clk 0:02:07.7]} 20... e4 {[%clk 0:01:55]}
21. c4 {[%clk 0:02:03.8]} 21... Bxb2 {[%clk 0:01:54.3]} 22. Qxb2 {[%clk
0:02:04.1]} 22... Qc5 {[%clk 0:01:51.1]} 23. Qd2 {[%clk 0:02:00]} 23... b6
{[%clk 0:01:50.6]} 24. Rad1 {[%clk 0:01:57.6]} 24... f4 {[%clk 0:01:45.8]} 25.
Qd4 {[%clk 0:01:55.9]} 25... Qxd4 {[%clk 0:01:30.3]} 26. Rxd4 {[%clk 0:01:55.3]}
26... Rae8 {[%clk 0:01:31.2]} 27. Bc2 {[%clk 0:01:46.5]} 27... e3 {[%clk
0:01:27.9]} 28. fxe3 {[%clk 0:01:45.3]} 28... fxe3 {[%clk 0:01:24.8]} 29. Rxf8+
{[%clk 0:01:25.3]} 29... Rxf8 {[%clk 0:01:19.7]} 30. Bd3 {[%clk 0:01:06.3]}
30... Rf2 {[%clk 0:00:56.2]} 31. Re4 {[%clk 0:01:05.1]} 31... Ra2 {[%clk
0:00:52.9]} 32. Rxe3 {[%clk 0:01:04.5]} 32... Kf7 {[%clk 0:00:51.3]} 33. Rf3+
{[%clk 0:00:47.4]} 33... Ke7 {[%clk 0:00:51.2]} 34. Bxh7 {[%clk 0:00:44.9]}
34... Rxa4 {[%clk 0:00:50.5]} 35. Rf4 {[%clk 0:00:22.2]} 35... Rb4 {[%clk
0:00:44.7]} 36. Bg6 {[%clk 0:00:21.5]} 36... a4 {[%clk 0:00:44.5]} 37. Rf7+
{[%clk 0:00:21.4]} 37... Kd8 {[%clk 0:00:45.1]} 38. Rf8+ {[%clk 0:00:18.7]}
38... Kc7 {[%clk 0:00:45.3]} 39. Ra8 {[%clk 0:00:19.1]} 39... Rxc4 {[%clk
0:00:43.5]} 40. g3 {[%clk 0:00:18]} 40... Bxb5 {[%clk 0:00:35.3]} 41. Kf2 {[%clk
0:00:10.4]} 41... Kb7 {[%clk 0:00:34.7]} 42. Rf8 {[%clk 0:00:05.5]} 42... a3
{[%clk 0:00:33.8]} 43. Ke3 {[%clk 0:00:05.6]} 43... a2 {[%clk 0:00:31.7]} 44.
Rf7+ {[%clk 0:00:04.8]} 44... Rc7 {[%clk 0:00:30.6]} 45. Rf1 {[%clk 0:00:05.1]}
45... Bxf1 {[%clk 0:00:29.9]} 0-1

[Event "Early-Titled-Tuesday-Blitz-March-05-2024"]
[Site "Chess.com"]
[Date "2024.03.05"]
[Round "1"]
[White "Kielinkei"]
[Black "Felix-Rose"]
[Result "1-0"]
[WhiteElo "2610"]
[BlackElo "2303"]
[TimeControl "180+1"]
[EndTime "8:07:21 PST"]
[Termination "Kielinkei won by checkmate"]

1. c4 {[%clk 0:03:00.9]} 1... e6 {[%clk 0:02:59.5]} 2. g3 {[%clk 0:03:00.9]}
2... d5 {[%clk 0:03:00.4]} 3. Bg2 {[%clk 0:03:01.5]} 3... Nf6 {[%clk 0:03:01]}
4. Nf3 {[%clk 0:03:01.9]} 4... dxc4 {[%clk 0:03:01.3]} 5. O-O {[%clk 0:03:01]}
5... Nbd7 {[%clk 0:02:55.7]} 6. Qc2 {[%clk 0:02:59.1]} 6... Nb6 {[%clk
0:02:48.7]} 7. a4 {[%clk 0:02:43.2]} 7... a5 {[%clk 0:02:48.3]} 8. Na3 {[%clk
0:02:38.5]} 8... Bxa3 {[%clk 0:02:47.3]} 9. Rxa3 {[%clk 0:02:39.4]} 9... O-O
{[%clk 0:02:47.4]} 10. d3 {[%clk 0:02:31.2]} 10... cxd3 {[%clk 0:02:44.2]} 11.
Rxd3 {[%clk 0:02:32.1]} 11... Qe7 {[%clk 0:02:39.6]} 12. Be3 {[%clk 0:02:08.3]}
12... Nbd5 {[%clk 0:02:38.3]} 13. Bc5 {[%clk 0:02:04.8]} 13... Qe8 {[%clk
0:01:42]} 14. Bxf8 {[%clk 0:02:04.5]} 14... Qxf8 {[%clk 0:01:39.2]} 15. Rdd1
{[%clk 0:02:03.7]} 15... Bd7 {[%clk 0:01:32.1]} 16. e4 {[%clk 0:01:44.8]} 16...
Nb4 {[%clk 0:01:30.5]} 17. Qxc7 {[%clk 0:01:37.5]} 17... Bxa4 {[%clk 0:01:29.1]}
18. Ra1 {[%clk 0:01:34.3]} 18... Bb5 {[%clk 0:01:02.6]} 19. Rfc1 {[%clk
0:01:32.9]} 19... Nxe4 {[%clk 0:00:35.4]} 20. Rxa5 {[%clk 0:01:21.8]} 20... Rxa5
{[%clk 0:00:33.8]} 21. Qxa5 {[%clk 0:01:21.5]} 21... Bc6 {[%clk 0:00:31.3]} 22.
Nd4 {[%clk 0:01:14.6]} 22... f5 {[%clk 0:00:24.9]} 23. Nxc6 {[%clk 0:01:10.6]}
23... Nxc6 {[%clk 0:00:25.8]} 24. Qa4 {[%clk 0:01:04.4]} 24... Qf6 {[%clk
0:00:21.8]} 25. Bxe4 {[%clk 0:01:00.8]} 25... fxe4 {[%clk 0:00:22.7]} 26. Qxe4
{[%clk 0:00:59.3]} 26... Kf7 {[%clk 0:00:22.1]} 27. Re1 {[%clk 0:00:56]} 27...
g6 {[%clk 0:00:20.4]} 28. b4 {[%clk 0:00:55.4]} 28... Ne7 {[%clk 0:00:19.1]} 29.
Qxb7 {[%clk 0:00:53.9]} 29... Qc3 {[%clk 0:00:19.3]} 30. Qe4 {[%clk 0:00:52.2]}
30... Qb3 {[%clk 0:00:15.8]} 31. b5 {[%clk 0:00:50.8]} 31... Nf5 {[%clk
0:00:15.6]} 32. Qe5 {[%clk 0:00:37.4]} 32... h5 {[%clk 0:00:14.5]} 33. Qc7+
{[%clk 0:00:33.8]} 33... Kf6 {[%clk 0:00:14.8]} 34. Qd8+ {[%clk 0:00:32.5]}
34... Kf7 {[%clk 0:00:14]} 35. Qd7+ {[%clk 0:00:32.5]} 35... Kf6 {[%clk
0:00:14.2]} 36. Qe8 {[%clk 0:00:25]} 36... Nd4 {[%clk 0:00:09.8]} 37. Qh8+
{[%clk 0:00:24.8]} 37... Kg5 {[%clk 0:00:08.6]} 38. Qxd4 {[%clk 0:00:25.7]}
38... Qxb5 {[%clk 0:00:09.3]} 39. Qf4# {[%clk 0:00:25.3]} 1-0

[Event "Early-Titled-Tuesday-Blitz-March-05-2024"]
[Site "Chess.com"]
[Date "2024.03.05"]
[Round "1"]
[White "JonSnowNW1"]
[Black "ElCoachRene"]
[Result "1-0"]
[WhiteElo "2532"]
[BlackElo "1991"]
[TimeControl "180+1"]
[EndTime "8:07:24 PST"]
[Termination "JonSnowNW1 won by resignation"]

1. e4 {[%clk 0:03:00.9]} 1... g6 {[%clk 0:02:58.7]} 2. d4 {[%clk 0:03:00.1]}
2... c5 {[%clk 0:02:58.6]} 3. Nf3 {[%clk 0:02:58.5]} 3... cxd4 {[%clk
0:02:58.5]} 4. Nxd4 {[%clk 0:02:59.2]} 4... Nc6 {[%clk 0:02:58.8]} 5. Nc3 {[%clk
0:02:57.4]} 5... Bg7 {[%clk 0:02:58.3]} 6. Be3 {[%clk 0:02:57.9]} 6... Nf6
{[%clk 0:02:57.9]} 7. f3 {[%clk 0:02:49.6]} 7... O-O {[%clk 0:02:56]} 8. Bc4
{[%clk 0:02:45.8]} 8... d6 {[%clk 0:02:53.3]} 9. Qd2 {[%clk 0:02:42.7]} 9...
Nxd4 {[%clk 0:02:52.5]} 10. Bxd4 {[%clk 0:02:42.5]} 10... Qa5 {[%clk 0:02:47.7]}
11. O-O-O {[%clk 0:02:35.2]} 11... Be6 {[%clk 0:02:42.2]} 12. Bxe6 {[%clk
0:02:31.9]} 12... fxe6 {[%clk 0:02:41.2]} 13. Kb1 {[%clk 0:02:32.6]} 13... Rac8
{[%clk 0:02:39.1]} 14. Nd5 {[%clk 0:02:18.7]} 14... Qxd2 {[%clk 0:02:36.2]} 15.
Nxf6+ {[%clk 0:02:16.4]} 15... Bxf6 {[%clk 0:02:33.1]} 16. Rxd2 {[%clk
0:02:16.4]} 16... Bxd4 {[%clk 0:02:25.2]} 17. Rxd4 {[%clk 0:02:17.3]} 17... Rc5
{[%clk 0:02:06.6]} 18. Rhd1 {[%clk 0:02:11.8]} 18... Rfc8 {[%clk 0:02:00]} 19.
R1d2 {[%clk 0:02:11.5]} 19... b5 {[%clk 0:01:53.5]} 20. a3 {[%clk 0:02:07.7]}
20... a5 {[%clk 0:01:50.7]} 21. b3 {[%clk 0:01:35.7]} 21... Rc3 {[%clk
0:01:46.4]} 22. Kb2 {[%clk 0:01:35.7]} 22... h5 {[%clk 0:01:36.8]} 23. R4d3
{[%clk 0:01:31.2]} 23... R3c5 {[%clk 0:01:36.3]} 24. f4 {[%clk 0:01:28.7]} 24...
Kg7 {[%clk 0:01:32.9]} 25. Rg3 {[%clk 0:01:25.8]} 25... Kf6 {[%clk 0:01:30.2]}
26. Rf2 {[%clk 0:01:25.5]} 26... a4 {[%clk 0:01:25.1]} 27. e5+ {[%clk
0:01:19.7]} 27... Kg7 {[%clk 0:01:19.6]} 28. exd6 {[%clk 0:01:17.8]} 28... exd6
{[%clk 0:01:18.8]} 29. Re3 {[%clk 0:01:16.7]} 29... Kf6 {[%clk 0:01:17.4]} 30.
Rfe2 {[%clk 0:01:16]} 30... Re8 {[%clk 0:01:05.4]} 31. Re4 {[%clk 0:01:16.1]}
31... axb3 {[%clk 0:01:04.2]} 32. Kxb3 {[%clk 0:01:13.4]} 32... d5 {[%clk
0:00:56.9]} 33. Re5 {[%clk 0:01:11.9]} 33... Rc4 {[%clk 0:00:52.7]} 34. Rxd5
{[%clk 0:01:07.8]} 34... Rxf4 {[%clk 0:00:50.5]} 35. Rxb5 {[%clk 0:01:06.9]}
35... e5 {[%clk 0:00:31.6]} 36. a4 {[%clk 0:01:04.8]} 36... e4 {[%clk
0:00:24.6]} 37. a5 {[%clk 0:01:00.8]} 37... e3 {[%clk 0:00:21.7]} 38. Kc3 {[%clk
0:00:59]} 38... Rf2 {[%clk 0:00:21.2]} 39. Kd3 {[%clk 0:00:49.1]} 39... Rxe2
{[%clk 0:00:17.6]} 40. Kxe2 {[%clk 0:00:49.2]} 40... Rc8 {[%clk 0:00:16.9]} 41.
Rb2 {[%clk 0:00:44.3]} 41... Rc5 {[%clk 0:00:10.8]} 42. Ra2 {[%clk 0:00:44.1]}
42... Rc8 {[%clk 0:00:04.2]} 43. a6 {[%clk 0:00:44.4]} 43... Ra8 {[%clk
0:00:04.1]} 44. a7 {[%clk 0:00:44.4]} 44... Ke7 {[%clk 0:00:03.1]} 45. Kxe3
{[%clk 0:00:44.4]} 45... Kd7 {[%clk 0:00:03.4]} 46. Kf4 {[%clk 0:00:44.4]} 46...
Kc7 {[%clk 0:00:03.5]} 47. Kg5 {[%clk 0:00:44.9]} 47... Kb7 {[%clk 0:00:04.1]}
48. Kxg6 {[%clk 0:00:45.2]} 48... Rg8+ {[%clk 0:00:03.4]} 49. Kxh5 {[%clk
0:00:45.8]} 49... Rh8+ {[%clk 0:00:03.3]} 50. Kg6 {[%clk 0:00:45.4]} 50... Rg8+
{[%clk 0:00:04.2]} 51. Kf7 {[%clk 0:00:45.2]} 51... Ra8 {[%clk 0:00:05.1]} 52.
g4 {[%clk 0:00:43.7]} 1-0

[Event "Early-Titled-Tuesday-Blitz-March-05-2024"]
[Site "Chess.com"]
[Date "2024.03.05"]
[Round "1"]
[White "Mariia89"]
[Black "RantomOpening"]
[Result "0-1"]
[WhiteElo "2254"]
[BlackElo "2586"]
[TimeControl "180+1"]
[EndTime "8:07:25 PST"]
[Termination "RantomOpening won on time"]

1. d4 {[%clk 0:02:59.8]} 1... d5 {[%clk 0:02:59.1]} 2. c4 {[%clk 0:02:59.9]}
2... e6 {[%clk 0:02:58.9]} 3. Nc3 {[%clk 0:02:59.9]} 3... Nf6 {[%clk 0:02:58.3]}
4. Nf3 {[%clk 0:03:00.1]} 4... Be7 {[%clk 0:02:54.4]} 5. Bg5 {[%clk 0:02:59.5]}
5... O-O {[%clk 0:02:53.5]} 6. e3 {[%clk 0:02:59.8]} 6... b6 {[%clk 0:02:53.1]}
7. cxd5 {[%clk 0:02:59.6]} 7... Nxd5 {[%clk 0:02:48.5]} 8. Nxd5 {[%clk
0:02:59.4]} 8... exd5 {[%clk 0:02:42.8]} 9. Bxe7 {[%clk 0:02:58.5]} 9... Qxe7
{[%clk 0:02:43.7]} 10. Bd3 {[%clk 0:02:57.3]} 10... c5 {[%clk 0:02:43.6]} 11.
O-O {[%clk 0:02:56.4]} 11... Be6 {[%clk 0:02:42.4]} 12. Rc1 {[%clk 0:02:56.5]}
12... Nd7 {[%clk 0:02:41.1]} 13. Bb1 {[%clk 0:02:55.1]} 13... g6 {[%clk
0:02:20.6]} 14. h3 {[%clk 0:02:47.2]} 14... Rac8 {[%clk 0:02:16]} 15. Re1 {[%clk
0:02:47]} 15... c4 {[%clk 0:02:14.7]} 16. e4 {[%clk 0:02:44]} 16... Qd6 {[%clk
0:02:13.4]} 17. e5 {[%clk 0:02:38.1]} 17... Qe7 {[%clk 0:02:10]} 18. Qd2 {[%clk
0:02:36.1]} 18... Kg7 {[%clk 0:02:08.6]} 19. h4 {[%clk 0:02:26.7]} 19... b5
{[%clk 0:02:02.8]} 20. h5 {[%clk 0:02:25.7]} 20... Bg4 {[%clk 0:02:00.5]} 21.
h6+ {[%clk 0:02:19.6]} 21... Kg8 {[%clk 0:02:00.4]} 22. Ng5 {[%clk 0:01:46.9]}
22... b4 {[%clk 0:01:51.3]} 23. Qf4 {[%clk 0:01:45.6]} 23... Be6 {[%clk
0:01:50.8]} 24. Re3 {[%clk 0:01:35]} 24... Nb6 {[%clk 0:01:36.2]} 25. Rg3 {[%clk
0:01:06.7]} 25... Na4 {[%clk 0:01:23.8]} 26. Qd2 {[%clk 0:00:32]} 26... c3
{[%clk 0:01:22.1]} 27. bxc3 {[%clk 0:00:32.1]} 27... Nxc3 {[%clk 0:01:22.2]} 28.
Bd3 {[%clk 0:00:26.4]} 28... a5 {[%clk 0:01:21]} 29. f4 {[%clk 0:00:25.7]} 29...
Kh8 {[%clk 0:01:15.7]} 30. Rf1 {[%clk 0:00:16]} 30... f5 {[%clk 0:01:10.1]} 31.
exf6 {[%clk 0:00:14.8]} 31... Rxf6 {[%clk 0:01:09.9]} 32. Nf3 {[%clk 0:00:12.2]}
32... Rcf8 {[%clk 0:01:07]} 33. Ne5 {[%clk 0:00:12.7]} 33... Bf5 {[%clk
0:01:06]} 34. Bxf5 {[%clk 0:00:12]} 34... Rxf5 {[%clk 0:01:06.9]} 35. Rxg6
{[%clk 0:00:11.3]} 35... Rxe5 {[%clk 0:01:03.4]} 36. fxe5 {[%clk 0:00:09.3]}
36... Rxf1+ {[%clk 0:01:02.2]} 37. Kxf1 {[%clk 0:00:09.8]} 37... hxg6 {[%clk
0:01:02.1]} 38. Qf4 {[%clk 0:00:09.9]} 38... Kg8 {[%clk 0:00:59.3]} 39. g4
{[%clk 0:00:09.3]} 39... a4 {[%clk 0:00:45.4]} 40. Ke1 {[%clk 0:00:07.5]} 40...
b3 {[%clk 0:00:45.1]} 41. axb3 {[%clk 0:00:07.6]} 41... axb3 {[%clk 0:00:46]}
42. Qd2 {[%clk 0:00:07.1]} 42... Qh4+ {[%clk 0:00:44.4]} 43. Kf1 {[%clk
0:00:06.7]} 43... Qh1+ {[%clk 0:00:42.6]} 44. Kf2 {[%clk 0:00:06.7]} 44... Ne4+
{[%clk 0:00:43.2]} 0-1

[Event "Early-Titled-Tuesday-Blitz-March-05-2024"]
[Site "Chess.com"]
[Date "2024.03.05"]
[Round "1"]
[White "Batica1984"]
[Black "Cambek64"]
[Result "1-0"]
[WhiteElo "2774"]
[BlackElo "2437"]
[TimeControl "180+1"]
[EndTime "8:07:26 PST"]
[Termination "Batica1984 won by resignation"]

1. e4 {[%clk 0:02:59.4]} 1... e6 {[%clk 0:02:39.5]} 2. d4 {[%clk 0:02:58.9]}
2... d5 {[%clk 0:02:38.3]} 3. Nc3 {[%clk 0:02:58.6]} 3... Nc6 {[%clk 0:02:37.1]}
4. e5 {[%clk 0:02:49]} 4... Nge7 {[%clk 0:02:36.6]} 5. Nf3 {[%clk 0:02:46.1]}
5... Nf5 {[%clk 0:02:36.7]} 6. Bb5 {[%clk 0:02:39.7]} 6... Bd7 {[%clk
0:02:35.2]} 7. Ne2 {[%clk 0:02:38.9]} 7... Nxe5 {[%clk 0:02:26.4]} 8. Bxd7+
{[%clk 0:02:28.6]} 8... Nxd7 {[%clk 0:02:25]} 9. Ng3 {[%clk 0:02:21.1]} 9... Nd6
{[%clk 0:02:18.7]} 10. Bf4 {[%clk 0:02:19.6]} 10... g6 {[%clk 0:02:17.6]} 11. h4
{[%clk 0:02:19.2]} 11... h5 {[%clk 0:02:16.8]} 12. Qe2 {[%clk 0:02:18.6]} 12...
Bg7 {[%clk 0:02:14.4]} 13. O-O-O {[%clk 0:02:18.2]} 13... Qe7 {[%clk 0:02:08.3]}
14. Ne5 {[%clk 0:02:17.6]} 14... O-O-O {[%clk 0:02:07]} 15. Rd3 {[%clk
0:02:17.3]} 15... Nxe5 {[%clk 0:01:52]} 16. dxe5 {[%clk 0:02:16.6]} 16... Nc4
{[%clk 0:01:47.4]} 17. Rb3 {[%clk 0:02:06.2]} 17... Kb8 {[%clk 0:01:33.9]} 18.
Kb1 {[%clk 0:01:50.4]} 18... Bh6 {[%clk 0:01:31.4]} 19. Bxh6 {[%clk 0:01:49.1]}
19... Rxh6 {[%clk 0:01:31.9]} 20. f4 {[%clk 0:01:47.2]} 20... Rhh8 {[%clk
0:01:31.3]} 21. Ne4 {[%clk 0:01:32.3]} 21... Nb6 {[%clk 0:01:19.8]} 22. Ng5
{[%clk 0:01:29.8]} 22... c5 {[%clk 0:01:17.7]} 23. Rhh3 {[%clk 0:01:28.9]} 23...
c4 {[%clk 0:01:16.8]} 24. Rb5 {[%clk 0:01:25.2]} 24... Qd7 {[%clk 0:01:13]} 25.
Ra5 {[%clk 0:01:25.2]} 25... Nc8 {[%clk 0:01:11.5]} 26. Rha3 {[%clk 0:01:24.3]}
26... Qc7 {[%clk 0:01:10.8]} 27. c3 {[%clk 0:01:18.9]} 27... Rd7 {[%clk
0:01:07.1]} 28. Qe3 {[%clk 0:01:17.6]} 28... b6 {[%clk 0:01:06.6]} 29. Ra6
{[%clk 0:01:16.9]} 29... Qc5 {[%clk 0:00:57.8]} 30. Qxc5 {[%clk 0:01:14.6]}
30... bxc5 {[%clk 0:00:58.2]} 31. Rc6 {[%clk 0:01:11.9]} 31... Rc7 {[%clk
0:00:57.6]} 32. Rxc7 {[%clk 0:01:10.2]} 32... Kxc7 {[%clk 0:00:57]} 33. Nxf7
{[%clk 0:01:10]} 33... Rf8 {[%clk 0:00:53.8]} 34. Ng5 {[%clk 0:01:10.1]} 34...
Kd7 {[%clk 0:00:52.7]} 35. g3 {[%clk 0:01:09.3]} 35... Re8 {[%clk 0:00:51.8]}
36. Ra6 {[%clk 0:01:08]} 36... Re7 {[%clk 0:00:35.3]} 37. Kc2 {[%clk 0:01:06.2]}
37... Re8 {[%clk 0:00:33.9]} 38. Kd2 {[%clk 0:01:05.8]} 38... Re7 {[%clk
0:00:33.8]} 39. Ke3 {[%clk 0:01:06]} 39... Re8 {[%clk 0:00:33.2]} 40. b3 {[%clk
0:01:06.2]} 40... cxb3 {[%clk 0:00:32.5]} 41. axb3 {[%clk 0:01:06.5]} 41... Re7
{[%clk 0:00:32.1]} 42. c4 {[%clk 0:01:03.1]} 42... Nb6 {[%clk 0:00:18.8]} 43.
Rxa7+ {[%clk 0:01:02]} 43... Ke8 {[%clk 0:00:18.9]} 44. Ra6 {[%clk 0:01:00.4]}
44... Rb7 {[%clk 0:00:18.7]} 45. Nxe6 {[%clk 0:00:59.5]} 45... dxc4 {[%clk
0:00:19.2]} 46. Nxc5 {[%clk 0:00:59.5]} 46... Rb8 {[%clk 0:00:19]} 47. bxc4
{[%clk 0:00:58]} 47... Nxc4+ {[%clk 0:00:19.2]} 48. Kd4 {[%clk 0:00:56.8]} 48...
Nd2 {[%clk 0:00:19.4]} 49. Rxg6 {[%clk 0:00:55.6]} 49... Kf7 {[%clk 0:00:19.5]}
50. Rf6+ {[%clk 0:00:55.1]} 50... Kg8 {[%clk 0:00:18.1]} 51. Rf5 {[%clk
0:00:48.7]} 51... Nb3+ {[%clk 0:00:16.9]} 52. Nxb3 {[%clk 0:00:48]} 52... Rxb3
{[%clk 0:00:17.5]} 53. Rxh5 {[%clk 0:00:48.2]} 53... Rxg3 {[%clk 0:00:18.2]} 54.
Rg5+ {[%clk 0:00:48.5]} 54... Rxg5 {[%clk 0:00:17.3]} 55. hxg5 {[%clk
0:00:48.8]} 1-0

[Event "Early-Titled-Tuesday-Blitz-March-05-2024"]
[Site "Chess.com"]
[Date "2024.03.05"]
[Round "1"]
[White "Leo_C"]
[Black "Witty_Alien"]
[Result "1-0"]
[WhiteElo "2628"]
[BlackElo "2327"]
[TimeControl "180+1"]
[EndTime "8:07:28 PST"]
[Termination "Leo_C won by checkmate"]

1. e4 {[%clk 0:03:00.9]} 1... c5 {[%clk 0:02:59.6]} 2. Nf3 {[%clk 0:03:01]} 2...
d6 {[%clk 0:02:58.4]} 3. d4 {[%clk 0:03:00.8]} 3... cxd4 {[%clk 0:02:58]} 4.
Qxd4 {[%clk 0:03:01.7]} 4... Nf6 {[%clk 0:02:58.7]} 5. Nc3 {[%clk 0:03:01.9]}
5... Nc6 {[%clk 0:02:49.7]} 6. Qd3 {[%clk 0:03:02]} 6... g6 {[%clk 0:02:48.5]}
7. Nd5 {[%clk 0:02:57]} 7... Bg7 {[%clk 0:02:46.2]} 8. c3 {[%clk 0:02:54.1]}
8... O-O {[%clk 0:02:35.7]} 9. Bg5 {[%clk 0:02:51.9]} 9... Nxd5 {[%clk
0:02:29.9]} 10. exd5 {[%clk 0:02:52.8]} 10... Ne5 {[%clk 0:02:30.5]} 11. Nxe5
{[%clk 0:02:47.7]} 11... Bxe5 {[%clk 0:02:08]} 12. Be2 {[%clk 0:02:46.1]} 12...
Bf5 {[%clk 0:02:00.7]} 13. Qd2 {[%clk 0:02:45.4]} 13... a5 {[%clk 0:01:55.8]}
14. a4 {[%clk 0:02:43.5]} 14... Qb6 {[%clk 0:01:54.1]} 15. h4 {[%clk 0:02:40]}
15... e6 {[%clk 0:01:35.9]} 16. Bf3 {[%clk 0:02:25.1]} 16... Rac8 {[%clk
0:01:25.9]} 17. h5 {[%clk 0:02:17.5]} 17... Rc4 {[%clk 0:00:55.6]} 18. Be2
{[%clk 0:01:37.2]} 18... Re4 {[%clk 0:00:45]} 19. O-O {[%clk 0:01:17.2]} 19...
gxh5 {[%clk 0:00:23.8]} 20. Bf3 {[%clk 0:01:15.2]} 20... Rc4 {[%clk 0:00:21.8]}
21. Rfe1 {[%clk 0:01:11.4]} 21... Rfc8 {[%clk 0:00:21.1]} 22. Bxh5 {[%clk
0:01:09.1]} 22... exd5 {[%clk 0:00:14.1]} 23. Qxd5 {[%clk 0:01:05.4]} 23... Be6
{[%clk 0:00:13.9]} 24. Qf3 {[%clk 0:01:01.9]} 24... Qxb2 {[%clk 0:00:13.1]} 25.
Rab1 {[%clk 0:00:48.6]} 25... Qxc3 {[%clk 0:00:12.5]} 26. Qxb7 {[%clk
0:00:48.7]} 26... R4c7 {[%clk 0:00:08.8]} 27. Qe4 {[%clk 0:00:46.4]} 27... Rc4
{[%clk 0:00:07.8]} 28. Qe2 {[%clk 0:00:45.5]} 28... Bd5 {[%clk 0:00:05.2]} 29.
Rbd1 {[%clk 0:00:29.1]} 29... f6 {[%clk 0:00:03.9]} 30. Rxd5 {[%clk 0:00:26.1]}
30... fxg5 {[%clk 0:00:02.6]} 31. Rd3 {[%clk 0:00:21.8]} 31... Qxe1+ {[%clk
0:00:02.3]} 32. Qxe1 {[%clk 0:00:21]} 32... Rc1 {[%clk 0:00:03.2]} 33. Rd1
{[%clk 0:00:21.6]} 33... Rxd1 {[%clk 0:00:03.1]} 34. Qxd1 {[%clk 0:00:22.1]}
34... Bf4 {[%clk 0:00:04]} 35. Qd5+ {[%clk 0:00:20.7]} 35... Kg7 {[%clk
0:00:04.7]} 36. g3 {[%clk 0:00:21.3]} 36... Be5 {[%clk 0:00:04.2]} 37. Kg2
{[%clk 0:00:20.9]} 37... Rc5 {[%clk 0:00:03.9]} 38. Qb7+ {[%clk 0:00:20.6]}
38... Kh6 {[%clk 0:00:01.8]} 39. Bf3 {[%clk 0:00:20.8]} 39... Rc3 {[%clk
0:00:01.6]} 40. Be4 {[%clk 0:00:20.9]} 40... g4 {[%clk 0:00:01.6]} 41. Qxh7+
{[%clk 0:00:19.7]} 41... Kg5 {[%clk 0:00:02.2]} 42. Qf5+ {[%clk 0:00:20.6]}
42... Kh6 {[%clk 0:00:02.1]} 43. Qg6# {[%clk 0:00:20.6]} 1-0